[Event "ESCC-65 2022"]
[Site "Lublin"]
[Date "2022.07.10"]
[Round "6.4"]
[White "Malesevic, Nedeljko"]
[Black "Biro, Sandor"]
[Result "1-0"]
[ECO "D96"]
[WhiteElo "2228"]
[BlackElo "2116"]
[Annotator "RC"]
[PlyCount "65"]
[EventDate "2022.07.05"]
[EventType "swiss"]
[EventCountry "POL"]
[SourceTitle "playchess.com"]
[Source "ChessBase"]
[SourceQuality "1"]
[TimeControl "40/5400+30:1800+30"]

1. d4 {[%emt 0:00:07]} Nf6 {[%emt 0:00:24]} 2. Nf3 {[%emt 0:00:32]} g6 {[%emt 0:00:23]} 3. c4 {[%emt 0:00:26]} Bg7 {[%emt 0:00:06]} 4. Nc3 {[%emt 0:00:17]} d5 {[%emt 0:00:05]} 5. Qb3 {[%emt 0:00:52]} dxc4 {[%emt 0:00:10]} 6. Qxc4 {[%emt 0:00:06]} O-O {[%emt 0:00:07]} 7. Bf4 {[%emt 0:01:39]} Na6 {[%emt 0:00:46]} 8. Rd1 {[%emt 0:02:05]} Be6 {[%emt 0:00:41]} 9. Qa4 {[%emt 0:20:48]} Nd5 {[%emt 0:00:23]} 10. Be5 {[%emt 0:06:22]} Nxc3 {[%emt 0:37:41]} 11. bxc3 {[%emt 0:00:56]} Qd5 {[%emt 0:00:06]} 12. Bxg7 {[%emt 0:10:40]} Kxg7 {[%emt 0:00:06]} 13. Rd2 {[%emt 0:06:36]} Bd7 {[%emt 0:10:49]} 14. Qa3 {[%emt 0:05:24]} c5 {[%emt 0:02:10]} 15. e3 {[%emt 0:06:55]} c4 {[%emt 0:09:47]} 16. Ne5 {[%emt 0:05:18]} Bb5 {[%emt 0:03:34]} 17. f3 {[%emt 0:03:10]} f6 {[%emt 0:14:56]} 18. Qxe7+ Kh8 {[%emt 0:00:06]} 19. e4 {[%emt 0:05:07]} Qg8 {[%emt 0:00:30]} 20. Ng4 {[%emt 0:04:37]} Rf7 {[%emt 0:07:37]} 21. Qd6 {[%emt 0:01:55]} Rd8 {[%emt 0:01:28]} 22. Qf4 {[%emt 0:02:04]} Qf8 {[%emt 0:01:31]} 23. Be2 {[%emt 0:02:13]} h5 {[%emt 0:07:11]} 24. Ne3 {[%emt 0:02:09]} Qa3 {[%emt 0:01:13]} 25. Qh6+ {[%emt 0:04:30]} Kg8 {[%emt 0:00:18]} 26. Qxg6+ {[%emt 0:01:11]} Rg7 {[%emt 0:00:21]} 27. Qxf6 {[%emt 0:00:27]} Rd6 {[%emt 0:00:15]} 28. Qe5 {[%emt 0:01:16]} Qxc3 {[%emt 0:01:07]} 29. Nf5 {[%emt 0:02:28]} Rxg2 {[%emt 0:00:10]} 30. Qxb5 {[%emt 0:02:31]} Qc1+ {[%emt 0:00:48]} 31. Rd1 {[%emt 0:00:11]} Qc3+ {[%emt 0:00:36]} 32. Kf1 {[%emt 0:00:13]} Rxe2 {[%emt 0:00:32]} 33. Qe8+ {[%emt 0:00:13]} 1-0

[Event "ESCC-65 2022"]
[Site "Lublin"]
[Date "2022.07.10"]
[Round "6.5"]
[White "Chapman, Terry P D"]
[Black "Stebbings, Anthony J"]
[Result "1/2-1/2"]
[ECO "A45"]
[WhiteElo "2207"]
[BlackElo "2283"]
[Annotator "RC"]
[PlyCount "47"]
[EventDate "2022.07.05"]
[EventType "swiss"]
[EventCountry "POL"]
[SourceTitle "playchess.com"]
[Source "ChessBase"]
[SourceQuality "1"]
[TimeControl "40/5400+30:1800+30"]

1. d4 {[%emt 0:01:13]} Nf6 {[%emt 0:00:05]} 2. g3 {[%emt 0:00:05]} e6 {[%emt 0:00:58]} 3. Bg2 {[%emt 0:00:33]} c5 {[%emt 0:00:14]} 4. Nf3 {[%emt 0:00:14]} cxd4 {[%emt 0:01:50]} 5. Nxd4 {[%emt 0:00:08]} d5 {[%emt 0:00:15]} 6. O-O {[%emt 0:00:53]} e5 {[%emt 0:01:00]} 7. Nb3 {[%emt 0:00:09]} Be7 {[%emt 0:01:18]} 8. c4 {[%emt 0:01:57]} d4 {[%emt 0:06:58]} 9. e3 {[%emt 0:01:12]} Bg4 {[%emt 0:05:10]} 10. Qd2 {[%emt 0:14:47]} Nc6 {[%emt 0:01:17]} 11. exd4 {[%emt 0:00:34]} exd4 {[%emt 0:00:38]} 12. h3 {[%emt 0:07:49]} Be6 {[%emt 0:02:00]} 13. Rd1 {[%emt 0:09:46]} Bxc4 {[%emt 0:16:56]} 14. Nxd4 {[%emt 0:01:05]} Nxd4 {[%emt 0:07:55]} 15. Qxd4 {[%emt 0:00:44]} Qxd4 {[%emt 0:02:31]} 16. Rxd4 {[%emt 0:00:02]} Ba6 {[%emt 0:01:04]} 17. Nc3 {[%emt 0:04:01]} O-O {[%emt 0:00:43]} 18. Rd1 {[%emt 0:13:52]} Rad8 {[%emt 0:02:22]} 19. Be3 {[%emt 0:00:25]} b6 {[%emt 0:00:23]} 20. a4 {[%emt 0:05:41]} Rxd1+ {[%emt 0:05:53]} 21. Rxd1 {[%emt 0:00:25]} Rd8 {[%emt 0:04:30]} 22. Rxd8+ {[%emt 0:00:37]} Bxd8 {[%emt 0:00:02]} 23. b4 {[%emt 0:08:06]} Bc4 {[%emt 0:02:39]} 24. Bc6 {[%emt 0:16:38]} 1/2-1/2

[Event "ESCC-65 2022"]
[Site "Lublin"]
[Date "2022.07.10"]
[Round "6.6"]
[White "Sokolowski, Ryszard"]
[Black "Schulz, Michael"]
[Result "0-1"]
[ECO "A67"]
[WhiteElo "2050"]
[BlackElo "2217"]
[Annotator "RC"]
[PlyCount "120"]
[EventDate "2022.07.05"]
[EventType "swiss"]
[EventCountry "POL"]
[SourceTitle "playchess.com"]
[Source "ChessBase"]
[SourceQuality "1"]
[TimeControl "40/5400+30:1800+30"]

1. d4 {[%emt 0:00:16]} Nf6 {[%emt 0:00:06]} 2. c4 {[%emt 0:00:23]} c5 {[%emt 0:00:08]} 3. d5 {[%emt 0:00:32]} e6 {[%emt 0:00:07]} 4. Nc3 {[%emt 0:00:29]} exd5 {[%emt 0:00:05]} 5. cxd5 {[%emt 0:00:11]} d6 {[%emt 0:00:19]} 6. e4 {[%emt 0:00:27]} g6 {[%emt 0:00:20]} 7. f4 {[%emt 0:01:20]} Bg7 {[%emt 0:00:08]} 8. Bb5+ {[%emt 0:00:28]} Nfd7 {[%emt 0:00:05]} 9. Bd3 {[%emt 0:01:59]} Qh4+ {[%emt 0:00:08]} 10. g3 {[%emt 0:00:52]} Qd8 {[%emt 0:00:04]} 11. Nf3 {[%emt 0:00:40]} O-O {[%emt 0:00:05]} 12. O-O {[%emt 0:00:33]} Re8 {[%emt 0:00:10]} 13. Kg2 {[%emt 0:04:42]} Na6 {[%emt 0:00:11]} 14. Re1 {[%emt 0:01:21]} Nf6 {[%emt 0:10:36]} 15. h3 {[%emt 0:01:53]} c4 {[%emt 0:00:38]} 16. Bxc4 {[%emt 0:01:24]} Bxh3+ {[%emt 0:00:47]} 17. Kxh3 {[%emt 0:06:26]} Qc8+ {[%emt 0:00:11]} 18. Kg2 {[%emt 0:00:18]} Qxc4 {[%emt 0:00:10]} 19. Nd2 {[%emt 0:13:15]} Qd3 {[%emt 0:02:57]} 20. Qe2 {[%emt 0:09:01]} Nc5 {[%emt 0:07:01]} 21. Qxd3 {[%emt 0:07:23]} Nxd3 {[%emt 0:01:41]} 22. Re2 {[%emt 0:00:10]} Rac8 {[%emt 0:02:14]} 23. Kf3 {[%emt 0:06:19]} b5 {[%emt 0:04:46]} 24. a3 {[%emt 0:01:40]} a6 {[%emt 0:01:49]} 25. Nb3 {[%emt 0:10:03]} Nd7 {[%emt 0:18:38]} 26. Re3 {[%emt 0:02:18]} N7c5 {[%emt 0:03:27]} 27. Nxc5 {[%emt 0:00:08]} Nxc5 {[%emt 0:00:08]} 28. Ne2 {[%emt 0:15:02]} Na4 {[%emt 0:03:17]} 29. Rb1 {[%emt 0:01:43]} Rc2 {[%emt 0:01:02]} 30. b3 {[%emt 0:00:20]} Nc5 {[%emt 0:01:26]} 31. g4 {[%emt 0:01:17]} Nxe4 {[%emt 0:01:55]} 32. g5 {[%emt 0:01:33]} f5 {[%emt 0:01:15]} 33. gxf6 {[%emt 0:00:14]} Nxf6 {[%emt 0:00:17]} 34. Rxe8+ {[%emt 0:02:36]} Nxe8 {[%emt 0:00:06]} 35. Be3 {[%emt 0:00:11]} Rb2 {[%emt 0:01:20]} 36. Rc1 {[%emt 0:01:12]} Rxb3 {[%emt 0:00:12]} 37. Rc8 {[%emt 0:00:22]} Kf8 {[%emt 0:00:30]} 38. f5 {[%emt 0:01:03]} Bh6 {[%emt 0:01:42]} 39. Nf4 {[%emt 0:00:13]} Bxf4 {[%emt 0:00:21]} 40. Kxf4 {[%emt 0:00:00]} gxf5 {[%emt 0:00:00]} 41. Bc1 {[%emt 0:02:40]} Rd3 {[%emt 0:03:33]} 42. Kxf5 {[%emt 0:00:36]} Rxd5+ {[%emt 0:00:07]} 43. Ke6 {[%emt 0:00:21]} Re5+ {[%emt 0:00:44]} 44. Kd7 {[%emt 0:00:02]} h5 {[%emt 0:02:10]} 45. Bf4 {[%emt 0:00:23]} Re7+ {[%emt 0:00:38]} 46. Kc6 {[%emt 0:00:01]} Kf7 {[%emt 0:00:45]} 47. Kb6 {[%emt 0:02:33]} Re4 {[%emt 0:01:20]} 48. Bh2 {[%emt 0:01:26]} Rh4 {[%emt 0:01:42]} 49. Bg1 {[%emt 0:00:39]} Rg4 {[%emt 0:00:14]} 50. Bh2 {[%emt 0:00:35]} Rc4 {[%emt 0:01:52]} 51. Ra8 {[%emt 0:00:23]} Ra4 {[%emt 0:00:38]} 52. Rxa6 {[%emt 0:00:18]} Rh4 {[%emt 0:03:38]} 53. Bg1 {[%emt 0:01:46]} Rg4 {[%emt 0:00:13]} 54. Be3 {[%emt 0:01:48]} b4 {[%emt 0:00:20]} 55. Ra7+ {[%emt 0:02:50]} Ke6 {[%emt 0:00:20]} 56. axb4 {[%emt 0:00:11]} Rxb4+ {[%emt 0:00:10]} 57. Kc6 {[%emt 0:00:06]} Rc4+ {[%emt 0:02:10]} 58. Kb6 {[%emt 0:00:52]} Nf6 {[%emt 0:00:41]} 59. Bg5 {[%emt 0:00:15]} Nd5+ {[%emt 0:00:39]} 60. Kb5 {[%emt 0:00:23]} Rc5+ {[%emt 0:00:18]} 0-1

[Event "ESCC-65 2022"]
[Site "Lublin"]
[Date "2022.07.10"]
[Round "6.7"]
[White "Chubar, Vladimir"]
[Black "Neumann, Joachim"]
[Result "1/2-1/2"]
[ECO "D02"]
[WhiteElo "1809"]
[BlackElo "2082"]
[Annotator "NA RC"]
[PlyCount "96"]
[EventDate "2022.07.05"]
[EventType "swiss"]
[EventCountry "POL"]
[SourceTitle "playchess.com"]
[Source "ChessBase"]
[SourceQuality "1"]
[TimeControl "40/5400+30:1800+30"]

1. d4 {[%emt 0:00:32]} Nf6 {[%emt 0:00:18]} 2. Nf3 d5 3. Bf4 {[%emt 0:02:19]} c5 {[%emt 0:01:28]} 4. e3 {[%emt 0:00:58]} Nc6 {[%emt 0:00:40]} 5. c3 {[%emt 0:01:28]} Qb6 {[%emt 0:02:11]} 6. Qc1 {[%emt 0:03:37]} Bf5 {[%emt 0:00:56]} 7. Nbd2 {[%emt 0:01:47]} cxd4 {[%emt 0:11:48]} 8. exd4 {[%emt 0:01:41]} Rc8 {[%emt 0:00:09]} 9. a3 {[%emt 0:02:23]} h6 {[%emt 0:06:00]} 10. h3 {[%emt 0:03:54]} e6 {[%emt 0:04:53]} 11. Be2 {[%emt 0:02:47]} Be7 {[%emt 0:03:19]} 12. b4 {[%emt 0:04:52]} O-O {[%emt 0:04:35]} 13. Qb2 {[%emt 0:02:04]} a5 {[%emt 0:01:42]} 14. O-O {[%emt 0:03:09]} axb4 {[%emt 0:13:39]} 15. axb4 {[%emt 0:01:20]} Ra8 {[%emt 0:03:08]} 16. Rxa8 {[%emt 0:05:57]} Rxa8 {[%emt 0:00:01]} 17. Ra1 {[%emt 0:00:25]} Rxa1+ {[%emt 0:05:16]} 18. Qxa1 {[%emt 0:00:06]} Qa7 {[%emt 0:00:59]} 19. Qb2 {[%emt 0:01:00]} Qa4 $11 {[%emt 0:04:29]} 20. g4 {[%emt 0:08:21]} Be4 {[%emt 0:06:26]} 21. Nxe4 {[%emt 0:02:23]} Nxe4 {[%emt 0:00:09]} 22. Kg2 {[%emt 0:02:50]} b5 {[%emt 0:09:31]} 23. Bd3 {[%emt 0:03:38]} Nd6 {[%emt 0:00:28]} 24. Qe2 {[%emt 0:03:08]} Nc4 {[%emt 0:05:24]} 25. g5 {[%emt 0:02:14]} hxg5 {[%emt 0:00:56]} 26. Nxg5 {[%emt 0:02:11]} Bxg5 {[%emt 0:05:31]} 27. Bxg5 {[%emt 0:00:09]} Nd6 {[%emt 0:00:37]} 28. Bf4 {[%emt 0:00:46]} Ne4 {[%emt 0:01:52]} 29. Bxb5 {[%emt 0:06:34]} Nxc3 {[%emt 0:03:28]} 30. Bxa4 {[%emt 0:00:16]} Nxe2 {[%emt 0:00:02]} 31. Bxc6 {[%emt 0:00:55]} Nxf4+ {[%emt 0:00:02]} 32. Kf3 {[%emt 0:00:12]} Nd3 {[%emt 0:00:02]} 33. b5 {[%emt 0:00:46]} Nb4 {[%emt 0:00:02]} 34. Bb7 {[%emt 0:10:58]} Kf8 {[%emt 0:00:01]} 35. Kg4 {[%emt 0:03:01]} Ke7 {[%emt 0:01:48]} 36. f4 {[%emt 0:03:26]} Nc2 {[%emt 0:03:10]} 37. b6 {[%emt 0:00:43]} Nxd4 {[%emt 0:01:22]} 38. f5 {[%emt 0:02:32]} Nxf5 {[%emt 0:01:03]} 39. Bxd5 {[%emt 0:00:51]} Ne3+ {[%emt 0:00:07]} 40. Kf3 {[%emt 0:00:20]} Kd6 {[%emt 0:00:41]} 41. Bxe6 {[%emt 0:01:59]} fxe6 {[%emt 0:00:03]} 42. Kxe3 {[%emt 0:00:07]} Kc6 {[%emt 0:00:12]} 43. Ke4 {[%emt 0:00:07]} Kxb6 {[%emt 0:00:24]} 44. Ke5 {[%emt 0:00:09]} Kc7 {[%emt 0:00:48]} 45. Kxe6 {[%emt 0:00:08]} Kd8 {[%emt 0:00:18]} 46. Kf7 {[%emt 0:00:06]} g5 {[%emt 0:00:25]} 47. Kf8 {[%emt 0:01:18]} Kd7 {[%emt 0:00:15]} 48. Kf7 {[%emt 0:01:13]} Kd8 {[%emt 0:00:10]} 1/2-1/2

[Event "ESCC-65 2022"]
[Site "Lublin"]
[Date "2022.07.10"]
[Round "6.8"]
[White "Rak, Tomasz"]
[Black "Stokes, Michael"]
[Result "1-0"]
[ECO "D02"]
[WhiteElo "1887"]
[BlackElo "2024"]
[Annotator "NA RC"]
[PlyCount "104"]
[EventDate "2022.07.05"]
[EventType "swiss"]
[EventCountry "POL"]
[SourceTitle "playchess.com"]
[Source "ChessBase"]
[SourceQuality "1"]
[TimeControl "40/5400+30:1800+30"]

1. Nf3 {[%emt 0:00:30]} Nf6 {[%emt 0:00:30]} 2. d4 {[%emt 0:01:32]} d5 {[%emt 0:00:04]} 3. Bf4 {[%emt 0:00:11]} e6 {[%emt 0:00:06]} 4. Nbd2 {[%emt 0:00:29]} b6 {[%emt 0:00:46]} 5. e3 {[%emt 0:00:14]} Bd6 {[%emt 0:00:32]} 6. Bg3 {[%emt 0:00:15]} Bb7 {[%emt 0:00:22]} 7. Ne5 {[%emt 0:02:13]} O-O {[%emt 0:01:26]} 8. c3 {[%emt 0:04:20]} c5 {[%emt 0:01:04]} 9. Bd3 {[%emt 0:00:16]} Nc6 {[%emt 0:02:04]} 10. f4 {[%emt 0:01:09]} Ne7 {[%emt 0:04:14]} 11. Bf2 {[%emt 0:02:14]} Ne4 {[%emt 0:02:32]} 12. Nxe4 {[%emt 0:06:05]} dxe4 {[%emt 0:00:24]} 13. Bc2 {[%emt 0:00:09]} Rc8 {[%emt 0:10:40]} 14. Qh5 {[%emt 0:07:00]} cxd4 {[%emt 0:06:26]} 15. exd4 {[%emt 0:00:22]} f6 {[%emt 0:05:56]} 16. Ng4 {[%emt 0:01:01]} Bxf4 {[%emt 0:00:37]} 17. O-O {[%emt 0:05:12]} g6 {[%emt 0:01:19]} 18. Qh3 {[%emt 0:00:31]} Nf5 {[%emt 0:03:20]} 19. Rae1 {[%emt 0:03:43]} Nd6 {[%emt 0:14:00]} 20. Bh4 {[%emt 0:06:49]} g5 {[%emt 0:05:16]} 21. Rxf4 {[%emt 0:06:49]} gxf4 {[%emt 0:00:54]} 22. Rf1 {[%emt 0:03:28]} Nf5 {[%emt 0:06:12]} 23. Rxf4 {[%emt 0:03:06]} Rc7 {[%emt 0:04:58]} 24. Bb3 {[%emt 0:08:59]} Nxd4 {[%emt 0:09:29]} 25. cxd4 {[%emt 0:33:05]} Qxd4+ {[%emt 0:00:16]} 26. Qe3 {[%emt 0:00:26]} Rc1+ {[%emt 0:02:45]} 27. Rf1 {[%emt 0:01:34]} Rxf1+ {[%emt 0:00:27]} 28. Kxf1 {[%emt 0:00:01]} Qxe3 {[%emt 0:01:16]} 29. Nxe3 {[%emt 0:00:02]} Bc8 {[%emt 0:00:40]} 30. g4 {[%emt 0:01:12]} Kg7 {[%emt 0:00:21]} 31. Bg3 {[%emt 0:00:57]} Rd8 {[%emt 0:01:44]} 32. Be1 {[%emt 0:00:35]} Kg6 {[%emt 0:01:10]} 33. Kf2 {[%emt 0:01:13]} f5 {[%emt 0:00:18]} 34. gxf5+ {[%emt 0:00:41]} exf5 {[%emt 0:00:09]} 35. Kg3 {[%emt 0:00:10]} b5 {[%emt 0:03:02]} 36. Kf4 {[%emt 0:00:23]} Rd6 {[%emt 0:01:01]} 37. Bc3 {[%emt 0:00:43]} a6 {[%emt 0:01:42]} 38. h4 {[%emt 0:00:18]} Rd3 {[%emt 0:03:50]} 39. Bc2 {[%emt 0:00:42]} Rd8 {[%emt 0:00:20]} 40. Bd1 {[%emt 0:00:00]} Be6 {[%emt 0:00:00]} 41. h5+ {[%emt 0:00:39]} Kf7 {[%emt 0:03:54]} 42. a3 {[%emt 0:00:12]} Bc4 {[%emt 0:04:25]} 43. Kxf5 {[%emt 0:03:08]} Bd5 {[%emt 0:06:49]} 44. h6 {[%emt 0:02:03]} Kg8 {[%emt 0:03:15]} 45. Bc2 {[%emt 0:03:57]} Bc6 {[%emt 0:01:19]} 46. Bb4 {[%emt 0:03:01]} Kf7 {[%emt 0:00:58]} 47. Bb3+ {[%emt 0:03:27]} Ke8 {[%emt 0:00:13]} 48. Be6 {[%emt 0:05:56]} Rd3 {[%emt 0:03:07]} 49. Kf4 {[%emt 0:00:20]} Kd8 {[%emt 0:01:21]} 50. Bf5 {[%emt 0:00:31]} Ke8 {[%emt 0:02:09]} 51. Bxh7 {[%emt 0:00:23]} Kf7 {[%emt 0:00:34]} 52. Bf5 {[%emt 0:00:18]} Ke8 {[%emt 0:10:22]} 1-0

[Event "ESCC-65 2022"]
[Site "Lublin"]
[Date "2022.07.10"]
[Round "6.9"]
[White "Gasik, Piotr"]
[Black "Olszowski, Andrzej"]
[Result "0-1"]
[ECO "A11"]
[WhiteElo "1990"]
[BlackElo "1600"]
[Annotator "NA RC"]
[PlyCount "142"]
[EventDate "2022.07.05"]
[EventType "swiss"]
[EventCountry "POL"]
[SourceTitle "playchess.com"]
[Source "ChessBase"]
[SourceQuality "1"]
[TimeControl "40/5400+30:1800+30"]

1. c4 {[%emt 0:00:10]} c6 {[%emt 0:00:29]} 2. e4 {[%emt 0:00:06]} e5 {[%emt 0:01:58]} 3. Nf3 {[%emt 0:00:08]} d6 {[%emt 0:00:27]} 4. d4 {[%emt 0:00:14]} Bg4 {[%emt 0:03:50]} 5. Nc3 {[%emt 0:02:15]} Nd7 {[%emt 0:01:11]} 6. Be3 {[%emt 0:01:22]} Ngf6 {[%emt 0:01:58]} 7. Be2 {[%emt 0:00:40]} Be7 {[%emt 0:00:12]} 8. O-O {[%emt 0:00:37]} O-O {[%emt 0:00:07]} 9. Qd2 {[%emt 0:01:56]} Qc7 {[%emt 0:04:42]} 10. Rac1 {[%emt 0:00:52]} Rfe8 {[%emt 0:10:04]} 11. d5 {[%emt 0:00:59]} c5 {[%emt 0:01:06]} 12. Ne1 {[%emt 0:01:01]} Bxe2 {[%emt 0:07:01]} 13. Qxe2 {[%emt 0:00:09]} Bf8 {[%emt 0:04:47]} 14. Nd3 {[%emt 0:00:13]} a6 {[%emt 0:00:16]} 15. f3 {[%emt 0:00:27]} Rab8 {[%emt 0:04:00]} 16. Nf2 {[%emt 0:01:17]} b5 {[%emt 0:03:21]} 17. cxb5 {[%emt 0:08:52]} axb5 {[%emt 0:00:16]} 18. Nxb5 {[%emt 0:00:25]} Qa5 {[%emt 0:01:05]} 19. Nc3 {[%emt 0:05:26]} Qb4 {[%emt 0:00:44]} 20. Nd3 {[%emt 0:02:22]} Qa5 {[%emt 0:02:35]} 21. b3 {[%emt 0:01:04]} Nb6 {[%emt 0:00:55]} 22. Nb2 {[%emt 0:01:28]} Nfd7 {[%emt 0:01:08]} 23. Rc2 {[%emt 0:02:11]} Rec8 {[%emt 0:01:50]} 24. Bd2 {[%emt 0:03:38]} Be7 {[%emt 0:07:53]} 25. Rfc1 {[%emt 0:05:23]} Ra8 {[%emt 0:06:38]} 26. g3 {[%emt 0:04:21]} Rcb8 {[%emt 0:06:42]} 27. Kg2 {[%emt 0:04:07]} Qa6 {[%emt 0:01:33]} 28. Kf1 {[%emt 0:02:44]} Qc8 {[%emt 0:00:53]} 29. Kg2 {[%emt 0:01:03]} Qb7 {[%emt 0:03:28]} 30. Be3 {[%emt 0:02:45]} f5 {[%emt 0:01:25]} 31. Rd1 {[%emt 0:02:49]} fxe4 {[%emt 0:01:16]} 32. fxe4 {[%emt 0:00:44]} Nf6 {[%emt 0:02:21]} 33. Kg1 Qd7 {[%emt 0:02:35]} 34. Kg2 {[%emt 0:04:16]} Ng4 {[%emt 0:01:06]} 35. Bg1 {[%emt 0:01:06]} Rf8 {[%emt 0:01:25]} 36. h3 {[%emt 0:01:18]} Nf6 {[%emt 0:00:25]} 37. b4 {[%emt 0:05:22]} cxb4 {[%emt 0:01:28]} 38. Bxb6 {[%emt 0:10:10]} bxc3 {[%emt 0:00:37]} 39. Rxc3 {[%emt 0:00:28]} Rxa2 {[%emt 0:01:24]} 40. Rd2 {[%emt 0:00:00]} Qe8 {[%emt 0:00:00]} 41. Qc4 {[%emt 0:06:10]} Ra1 {[%emt 0:04:29]} 42. Rf2 {[%emt 0:01:34]} Qg6 {[%emt 0:00:44]} 43. Re3 {[%emt 0:01:48]} Qg5 {[%emt 0:14:18]} 44. Ref3 {[%emt 0:06:32]} Qc1 {[%emt 0:01:36]} 45. Qxc1 {[%emt 0:02:47]} Rxc1 {[%emt 0:00:13]} 46. Re2 {[%emt 0:01:14]} Rb8 {[%emt 0:00:45]} 47. Be3 {[%emt 0:03:45]} Rb1 {[%emt 0:01:11]} 48. Rff2 {[%emt 0:00:56]} Nxe4 {[%emt 0:01:36]} 49. Ba7 {[%emt 0:00:26]} Rb7 {[%emt 0:02:10]} 50. Rxe4 {[%emt 0:00:44]} R1xb2 {[%emt 0:00:10]} 51. Ra4 {[%emt 0:01:22]} Rxf2+ {[%emt 0:00:52]} 52. Kxf2 {[%emt 0:01:17]} Rb5 {[%emt 0:00:23]} 53. Kf3 {[%emt 0:00:19]} Rxd5 {[%emt 0:01:24]} 54. Ke4 {[%emt 0:00:03]} Rb5 {[%emt 0:01:58]} 55. Be3 {[%emt 0:00:30]} Kf7 {[%emt 0:00:34]} 56. Ra6 {[%emt 0:00:05]} Ke6 {[%emt 0:00:26]} 57. g4 {[%emt 0:00:05]} Rb4+ {[%emt 0:00:25]} 58. Kf3 {[%emt 0:00:10]} h6 {[%emt 0:00:15]} 59. Ke2 {[%emt 0:00:38]} e4 {[%emt 0:02:14]} 60. Bc5 {[%emt 0:00:42]} Rc4 {[%emt 0:00:13]} 61. Ba3 {[%emt 0:00:17]} Rc3 {[%emt 0:01:04]} 62. h4 {[%emt 0:00:10]} Rxa3 {[%emt 0:02:56]} 63. Rxa3 {[%emt 0:00:09]} Bxh4 {[%emt 0:00:30]} 64. Ra7 {[%emt 0:00:55]} Bf6 {[%emt 0:00:32]} 65. Ra8 {[%emt 0:02:26]} Ke5 {[%emt 0:00:19]} 66. Re8+ {[%emt 0:00:26]} Kf4 {[%emt 0:00:35]} 67. Re6 {[%emt 0:00:20]} Be5 {[%emt 0:00:39]} 68. Rg6 {[%emt 0:00:23]} d5 {[%emt 0:00:31]} 69. Kd2 {[%emt 0:00:28]} d4 {[%emt 0:00:40]} 70. Ke2 {[%emt 0:00:06]} d3+ {[%emt 0:00:31]} 71. Kd2 Bf6 0-1

[Event "ESCC-65 2022"]
[Site "Lublin"]
[Date "2022.07.10"]
[Round "6.10"]
[White "Sciupokas, Arunas"]
[Black "Krupa, Jerzy"]
[Result "1/2-1/2"]
[ECO "B40"]
[WhiteElo "1960"]
[BlackElo "1771"]
[Annotator "NA RC"]
[PlyCount "93"]
[EventDate "2022.07.05"]
[EventType "swiss"]
[EventCountry "POL"]
[SourceTitle "playchess.com"]
[Source "ChessBase"]
[SourceQuality "1"]
[TimeControl "40/5400+30:1800+30"]

1. e4 {[%emt 0:00:04]} c5 {[%emt 0:00:11]} 2. Nf3 {[%emt 0:00:23]} e6 {[%emt 0:00:21]} 3. c3 {[%emt 0:01:35]} Nf6 {[%emt 0:00:08]} 4. e5 {[%emt 0:00:51]} Nd5 {[%emt 0:00:07]} 5. d4 {[%emt 0:00:39]} cxd4 {[%emt 0:00:07]} 6. cxd4 {[%emt 0:00:52]} b6 {[%emt 0:00:41]} 7. a3 {[%emt 0:10:05]} Be7 {[%emt 0:02:53]} 8. Bd3 {[%emt 0:01:14]} Ba6 {[%emt 0:02:03]} 9. O-O {[%emt 0:03:11]} O-O {[%emt 0:00:20]} 10. b4 {[%emt 0:05:14]} Bxd3 {[%emt 0:01:44]} 11. Qxd3 {[%emt 0:00:03]} d6 {[%emt 0:00:52]} 12. Nc3 {[%emt 0:10:27]} Nxc3 {[%emt 0:03:24]} 13. Qxc3 {[%emt 0:00:11]} Nd7 {[%emt 0:00:30]} 14. exd6 {[%emt 0:07:29]} Bxd6 {[%emt 0:00:36]} 15. Bg5 {[%emt 0:01:12]} Be7 {[%emt 0:01:38]} 16. Bxe7 {[%emt 0:03:11]} Qxe7 {[%emt 0:00:02]} 17. Rac1 {[%emt 0:03:13]} Nf6 {[%emt 0:01:18]} 18. Qc6 {[%emt 0:04:40]} Rad8 {[%emt 0:04:49]} 19. Rc2 {[%emt 0:03:27]} h6 {[%emt 0:03:34]} 20. Rfc1 {[%emt 0:03:07]} Nd5 {[%emt 0:04:39]} 21. Qa4 {[%emt 0:01:57]} Qb7 {[%emt 0:01:02]} 22. b5 {[%emt 0:03:14]} Rc8 {[%emt 0:05:38]} 23. Rc6 {[%emt 0:07:37]} Ne7 {[%emt 0:03:14]} 24. Rxc8 {[%emt 0:11:48]} Rxc8 {[%emt 0:00:02]} 25. Qd1 {[%emt 0:03:02]} Qd5 {[%emt 0:02:59]} 26. Rxc8+ {[%emt 0:02:03]} Nxc8 {[%emt 0:00:02]} 27. a4 {[%emt 0:00:24]} Nd6 {[%emt 0:03:26]} 28. Ne5 {[%emt 0:05:51]} Nf5 {[%emt 0:21:40]} 29. Nc6 {[%emt 0:00:59]} Qe4 {[%emt 0:06:28]} 30. g3 {[%emt 0:05:09]} a6 {[%emt 0:00:55]} 31. Qf1 {[%emt 0:02:06]} a5 {[%emt 0:11:13]} 32. Qd1 {[%emt 0:00:10]} Kf8 {[%emt 0:00:40]} 33. h3 {[%emt 0:00:27]} Qd5 {[%emt 0:02:15]} 34. Qd3 {[%emt 0:00:45]} g6 {[%emt 0:01:43]} 35. Qa3+ {[%emt 0:00:24]} Kg7 {[%emt 0:00:24]} 36. Qc3 {[%emt 0:00:21]} h5 {[%emt 0:01:41]} 37. h4 {[%emt 0:00:25]} f6 {[%emt 0:01:38]} 38. Qb2 {[%emt 0:00:58]} Qe4 {[%emt 0:02:23]} 39. Qd2 {[%emt 0:00:29]} Qb1+ {[%emt 0:00:40]} 40. Kg2 {[%emt 0:00:00]} Qb3 {[%emt 0:00:00]} 41. Qf4 {[%emt 0:07:20]} Qd5+ {[%emt 0:08:49]} 42. Kg1 {[%emt 0:12:18]} Qd6 {[%emt 0:00:41]} 43. Qe4 {[%emt 0:01:15]} Kf7 {[%emt 0:02:23]} 44. Kf1 {[%emt 0:04:22]} Qd5 {[%emt 0:07:10]} 45. Qf4 {[%emt 0:02:29]} Qd6 {[%emt 0:03:20]} 46. Qe4 {[%emt 0:01:09]} Qd5 {[%emt 0:00:19]} 47. Qf4 1/2-1/2